[Event "*** Titled Tuesday Blitz"]
[Site "Chess.com"]
[Date "2020.10.20"]
[Round "1"]
[White "Superfelix"]
[Black "Jospem"]
[Result "0-1"]
[WhiteElo "2450"]
[BlackElo "2955"]
[TimeControl "180+1"]
[EndTime "10:08:52 PDT"]
[Termination "Jospem won by resignation"]

1. e4 {[%clk 0:03:00.3]} 1... e5 {[%clk 0:02:59.8]} 2. Nf3 {[%clk 0:03:00.3]}
2... Nc6 {[%clk 0:03:00.3]} 3. d4 {[%clk 0:02:56.2]} 3... exd4 {[%clk
0:03:01.2]} 4. Nxd4 {[%clk 0:02:57.1]} 4... Nf6 {[%clk 0:03:01]} 5. Nc3 {[%clk
0:02:53.4]} 5... d6 {[%clk 0:02:53.2]} 6. g3 {[%clk 0:02:51.2]} 6... Be7 {[%clk
0:02:52.7]} 7. Bg2 {[%clk 0:02:50.8]} 7... O-O {[%clk 0:02:48.4]} 8. O-O {[%clk
0:02:50]} 8... Bd7 {[%clk 0:02:49]} 9. h3 {[%clk 0:02:49.6]} 9... Re8 {[%clk
0:02:49.2]} 10. Be3 {[%clk 0:02:49.5]} 10... Bf8 {[%clk 0:02:49.2]} 11. Re1
{[%clk 0:02:48.8]} 11... a6 {[%clk 0:02:41.7]} 12. Nd5 {[%clk 0:02:47.1]} 12...
Nxd5 {[%clk 0:02:32.5]} 13. exd5 {[%clk 0:02:37]} 13... Ne7 {[%clk 0:02:16.5]}
14. c4 {[%clk 0:02:32.4]} 14... Nf5 {[%clk 0:02:05.3]} 15. Nxf5 {[%clk
0:02:31.8]} 15... Bxf5 {[%clk 0:02:06.2]} 16. Qd2 {[%clk 0:02:31]} 16... Qd7
{[%clk 0:01:58.8]} 17. Kh2 {[%clk 0:02:30.3]} 17... Be4 {[%clk 0:01:57.6]} 18.
Bd4 {[%clk 0:02:28.8]} 18... Bxg2 {[%clk 0:01:54]} 19. Kxg2 {[%clk 0:02:29.7]}
19... c5 {[%clk 0:01:52.3]} 20. Bc3 {[%clk 0:02:27.5]} 20... b5 {[%clk
0:01:50.9]} 21. b3 {[%clk 0:02:27.7]} 21... Qf5 {[%clk 0:01:39.1]} 22. Rxe8
{[%clk 0:02:20.8]} 22... Rxe8 {[%clk 0:01:40]} 23. Re1 {[%clk 0:02:21.2]} 23...
Rb8 {[%clk 0:01:21.5]} 24. g4 {[%clk 0:02:16.8]} 24... Qg6 {[%clk 0:01:21.1]}
25. f4 {[%clk 0:02:08.9]} 25... f5 {[%clk 0:01:09.7]} 26. Re6 {[%clk 0:02:07.8]}
26... Qf7 {[%clk 0:01:10.4]} 27. g5 {[%clk 0:01:59.1]} 27... bxc4 {[%clk
0:01:10.7]} 28. bxc4 {[%clk 0:01:59]} 28... a5 {[%clk 0:00:52.6]} 29. Qc2 {[%clk
0:01:57.3]} 29... Ra8 {[%clk 0:00:29.1]} 30. a4 {[%clk 0:01:55.9]} 30... Ra7
{[%clk 0:00:29.1]} 31. Qe2 {[%clk 0:01:54.3]} 31... Ra8 {[%clk 0:00:26.9]} 32.
h4 {[%clk 0:01:54.5]} 32... Qd7 {[%clk 0:00:25.7]} 33. Qc2 {[%clk 0:01:51.7]}
33... Qf7 {[%clk 0:00:26.3]} 34. Qe2 {[%clk 0:01:50.5]} 34... Qd7 {[%clk
0:00:26]} 35. Qc2 {[%clk 0:01:50.3]} 35... Qf7 {[%clk 0:00:26.6]} 36. Qd1 {[%clk
0:01:42.9]} 36... Rb8 {[%clk 0:00:19.9]} 37. h5 {[%clk 0:01:42.8]} 37... Qb7
{[%clk 0:00:16.4]} 38. g6 {[%clk 0:01:41.5]} 38... Be7 {[%clk 0:00:04.2]} 39. h6
{[%clk 0:01:39.1]} 39... Bf6 {[%clk 0:00:03.6]} 40. gxh7+ {[%clk 0:01:38.1]}
40... Kxh7 {[%clk 0:00:03.3]} 41. Bxf6 {[%clk 0:01:37.1]} 41... gxf6 {[%clk
0:00:03.6]} 42. Qe2 {[%clk 0:01:35.1]} 42... Rg8+ {[%clk 0:00:03.4]} 43. Kh2
{[%clk 0:01:35.4]} 43... Qb3 {[%clk 0:00:03.1]} 44. Re3 {[%clk 0:01:32.8]} 44...
Qb1 {[%clk 0:00:02.3]} 45. Re7+ {[%clk 0:01:23.9]} 45... Kxh6 {[%clk 0:00:02.4]}
46. Qf2 {[%clk 0:01:24.4]} 46... Kh5 {[%clk 0:00:02.3]} 47. Rh7+ {[%clk
0:01:23.5]} 47... Kg6 {[%clk 0:00:02.5]} 48. Rh3 {[%clk 0:01:19.2]} 48... Kf7
{[%clk 0:00:02.3]} 49. Rh7+ {[%clk 0:01:14.5]} 49... Rg7 {[%clk 0:00:03]} 50.
Rh3 {[%clk 0:01:04.8]} 50... Qe4 {[%clk 0:00:03.5]} 51. Re3 {[%clk 0:00:58.6]}
51... Rg2+ {[%clk 0:00:02.6]} 52. Qxg2 {[%clk 0:00:57]} 52... Qxe3 {[%clk
0:00:03.4]} 53. Qf1 {[%clk 0:00:54.1]} 53... Qd2+ {[%clk 0:00:02.2]} 54. Kg3
{[%clk 0:00:54.1]} 54... Qc2 {[%clk 0:00:02.4]} 55. Qe1 {[%clk 0:00:51.5]} 55...
Qb3+ {[%clk 0:00:02]} 56. Kh4 {[%clk 0:00:51.5]} 56... Qxc4 {[%clk 0:00:02.7]}
57. Qe6+ {[%clk 0:00:51.7]} 57... Kg7 {[%clk 0:00:03]} 58. Qe7+ {[%clk
0:00:52.2]} 58... Kg6 {[%clk 0:00:03.6]} 59. Qe8+ {[%clk 0:00:52]} 59... Kh7
{[%clk 0:00:04.2]} 60. Qf7+ {[%clk 0:00:51.8]} 60... Kh8 {[%clk 0:00:04.9]} 61.
Qxf6+ {[%clk 0:00:51.9]} 61... Kg8 {[%clk 0:00:05.8]} 62. Qe6+ {[%clk
0:00:51.7]} 62... Kg7 {[%clk 0:00:05.8]} 63. Qe7+ {[%clk 0:00:51.4]} 63... Kg8
{[%clk 0:00:04]} 64. Qg5+ {[%clk 0:00:49.8]} 64... Kh8 {[%clk 0:00:02.6]} 65.
Qxf5 {[%clk 0:00:50.3]} 65... Qd4 {[%clk 0:00:02.4]} 66. Qf8+ {[%clk 0:00:47.4]}
66... Kh7 {[%clk 0:00:02.7]} 67. Qxd6 {[%clk 0:00:47.7]} 67... c4 {[%clk
0:00:02.7]} 68. Qe7+ {[%clk 0:00:45.3]} 68... Kg8 {[%clk 0:00:03.2]} 69. Qe6+
{[%clk 0:00:45.1]} 69... Kg7 {[%clk 0:00:02.9]} 70. Qe7+ {[%clk 0:00:39.5]}
70... Kg8 {[%clk 0:00:02.7]} 71. Qg5+ {[%clk 0:00:39.2]} 71... Kf7 {[%clk
0:00:02.3]} 72. Qf5+ {[%clk 0:00:38.3]} 72... Qf6+ {[%clk 0:00:02.4]} 73. Kg4
{[%clk 0:00:26.2]} 73... Qxf5+ {[%clk 0:00:02.8]} 74. Kxf5 {[%clk 0:00:26.6]}
74... c3 {[%clk 0:00:03.7]} 75. d6 {[%clk 0:00:27.5]} 75... c2 {[%clk
0:00:04.2]} 76. d7 {[%clk 0:00:27.9]} 76... Ke7 {[%clk 0:00:04.7]} 77. Kg6
{[%clk 0:00:27.3]} 0-1

[Event "*** Titled Tuesday Blitz"]
[Site "Chess.com"]
[Date "2020.10.20"]
[Round "1"]
[White "Agoking701"]
[Black "ENajer77"]
[Result "0-1"]
[WhiteElo "2343"]
[BlackElo "2694"]
[TimeControl "180+1"]
[EndTime "10:08:52 PDT"]
[Termination "ENajer77 won by resignation"]

1. e4 {[%clk 0:03:00.9]} 1... c6 {[%clk 0:02:59]} 2. d4 {[%clk 0:02:59.7]} 2...
d5 {[%clk 0:02:56.8]} 3. Nc3 {[%clk 0:02:59]} 3... dxe4 {[%clk 0:02:56.6]} 4.
Nxe4 {[%clk 0:02:57.7]} 4... Bf5 {[%clk 0:02:56.8]} 5. Ng3 {[%clk 0:02:56.7]}
5... Bg6 {[%clk 0:02:56.9]} 6. Nf3 {[%clk 0:02:56.8]} 6... Nd7 {[%clk
0:02:55.8]} 7. Bd3 {[%clk 0:02:52]} 7... e6 {[%clk 0:02:55]} 8. O-O {[%clk
0:02:49.6]} 8... Ngf6 {[%clk 0:02:53.9]} 9. Bg5 {[%clk 0:02:49.6]} 9... Qc7
{[%clk 0:02:49]} 10. Re1 {[%clk 0:02:45.5]} 10... Be7 {[%clk 0:02:45.4]} 11. Qe2
{[%clk 0:02:38.1]} 11... Bxd3 {[%clk 0:02:34.9]} 12. Qxd3 {[%clk 0:02:37.5]}
12... O-O {[%clk 0:02:34.5]} 13. c3 {[%clk 0:02:34.7]} 13... Rfe8 {[%clk
0:02:29.3]} 14. Rad1 {[%clk 0:02:31.8]} 14... h6 {[%clk 0:02:26.3]} 15. Bc1
{[%clk 0:02:29.6]} 15... Rad8 {[%clk 0:02:19.7]} 16. Ne4 {[%clk 0:02:20.9]}
16... Nxe4 {[%clk 0:02:17.9]} 17. Qxe4 {[%clk 0:02:21.8]} 17... Nf6 {[%clk
0:02:17.4]} 18. Qf4 {[%clk 0:02:13.6]} 18... Qxf4 {[%clk 0:01:46.1]} 19. Bxf4
{[%clk 0:02:12.9]} 19... c5 {[%clk 0:01:44.5]} 20. Kf1 {[%clk 0:02:01.6]} 20...
g5 {[%clk 0:01:38.5]} 21. Bg3 {[%clk 0:01:54.4]} 21... Nd5 {[%clk 0:01:23.4]}
22. Ne5 {[%clk 0:01:49.5]} 22... h5 {[%clk 0:01:08.2]} 23. h3 {[%clk 0:01:45.4]}
23... cxd4 {[%clk 0:01:04.9]} 24. Rxd4 {[%clk 0:01:44.4]} 24... Bc5 {[%clk
0:01:00.8]} 25. Rc4 {[%clk 0:01:40.8]} 25... Bb6 {[%clk 0:00:58]} 26. h4 {[%clk
0:01:35.3]} 26... g4 {[%clk 0:00:53.4]} 27. Ke2 {[%clk 0:01:33.7]} 27... Ne7
{[%clk 0:00:51.2]} 28. Bf4 {[%clk 0:01:27.1]} 28... f6 {[%clk 0:00:50.8]} 29.
Nd3 {[%clk 0:01:22.8]} 29... e5 {[%clk 0:00:50.2]} 30. Be3 {[%clk 0:01:20.3]}
30... Bxe3 {[%clk 0:00:48.7]} 31. fxe3 {[%clk 0:01:21.2]} 31... Nf5 {[%clk
0:00:44.7]} 32. e4 {[%clk 0:01:20.1]} 32... Nxh4 {[%clk 0:00:41.8]} 33. Rh1
{[%clk 0:01:17.7]} 33... Nxg2 {[%clk 0:00:40.3]} 34. Rc7 {[%clk 0:01:16.1]}
34... h4 {[%clk 0:00:37.6]} 35. Rxb7 {[%clk 0:00:53.3]} 35... g3 {[%clk
0:00:33]} 36. Kf3 {[%clk 0:00:51.8]} 36... Rxd3+ {[%clk 0:00:28.9]} 37. Kxg2
{[%clk 0:00:52.1]} 37... Rd2+ {[%clk 0:00:29]} 38. Kf3 {[%clk 0:00:50.9]} 38...
g2 {[%clk 0:00:26.2]} 39. Rg1 {[%clk 0:00:47]} 39... h3 {[%clk 0:00:25.8]} 40.
Kg3 {[%clk 0:00:47.3]} 40... Rd3+ {[%clk 0:00:26]} 41. Kh2 {[%clk 0:00:41.2]}
41... a5 {[%clk 0:00:25.8]} 42. c4 {[%clk 0:00:37.8]} 42... Rc8 {[%clk
0:00:18.3]} 43. Rb3 {[%clk 0:00:38]} 43... Rxb3 {[%clk 0:00:16.6]} 44. axb3
{[%clk 0:00:38.9]} 44... Rb8 {[%clk 0:00:16.9]} 45. Kxh3 {[%clk 0:00:38.4]}
45... Rxb3+ {[%clk 0:00:17.4]} 46. Kg4 {[%clk 0:00:36.6]} 46... Kf7 {[%clk
0:00:16.8]} 47. Rxg2 {[%clk 0:00:35.9]} 47... Ke6 {[%clk 0:00:16.3]} 48. Rc2
{[%clk 0:00:36.2]} 48... Re3 {[%clk 0:00:15.8]} 49. c5 {[%clk 0:00:30.4]} 49...
Rxe4+ {[%clk 0:00:16.2]} 50. Kf3 {[%clk 0:00:31]} 50... Rf4+ {[%clk 0:00:15.5]}
51. Ke3 {[%clk 0:00:31.4]} 51... Kd7 {[%clk 0:00:15.6]} 52. Rc3 {[%clk
0:00:28.9]} 52... Kc6 {[%clk 0:00:15.2]} 53. Ra3 {[%clk 0:00:29.4]} 53... a4
{[%clk 0:00:14.9]} 54. Rc3 {[%clk 0:00:29.2]} 54... f5 {[%clk 0:00:12.9]} 55.
Rc1 {[%clk 0:00:29.2]} 55... Rb4 {[%clk 0:00:12.3]} 56. Rc2 {[%clk 0:00:28.9]}
56... Rb3+ {[%clk 0:00:12.2]} 57. Kf2 {[%clk 0:00:27]} 57... Rb5 {[%clk
0:00:11.2]} 58. Ke3 {[%clk 0:00:22.3]} 58... Rxc5 {[%clk 0:00:11]} 59. Rf2
{[%clk 0:00:23.2]} 59... f4+ {[%clk 0:00:07.7]} 60. Ke4 {[%clk 0:00:23.6]} 60...
Kd6 {[%clk 0:00:08]} 61. Rd2+ {[%clk 0:00:21.6]} 61... Ke6 {[%clk 0:00:07.8]}
62. Rh2 {[%clk 0:00:19.2]} 62... Rc4+ {[%clk 0:00:08]} 63. Kd3 {[%clk
0:00:19.7]} 63... Rd4+ {[%clk 0:00:07.9]} 64. Kc3 {[%clk 0:00:19.7]} 64... Kf5
{[%clk 0:00:07.7]} 65. Rh5+ {[%clk 0:00:16.9]} 65... Ke4 {[%clk 0:00:07.4]} 66.
Rh1 {[%clk 0:00:17.8]} 66... f3 {[%clk 0:00:07.4]} 67. Re1+ {[%clk 0:00:17.9]}
67... Kf4 {[%clk 0:00:07.4]} 68. Rf1 {[%clk 0:00:17.7]} 68... Rd8 {[%clk
0:00:06.9]} 69. Kb4 {[%clk 0:00:16.6]} 69... e4 {[%clk 0:00:07.4]} 70. Kxa4
{[%clk 0:00:16.9]} 70... e3 {[%clk 0:00:07.8]} 71. b4 {[%clk 0:00:17.5]} 71...
e2 {[%clk 0:00:08.1]} 72. Rb1 {[%clk 0:00:18]} 72... Ke3 {[%clk 0:00:08.4]} 73.
b5 {[%clk 0:00:16.5]} 73... Kf2 {[%clk 0:00:09.3]} 74. b6 {[%clk 0:00:15.9]}
74... e1=Q {[%clk 0:00:08.8]} 75. Rxe1 {[%clk 0:00:16.4]} 75... Kxe1 {[%clk
0:00:09]} 76. Kb5 {[%clk 0:00:17.3]} 76... Rb8 {[%clk 0:00:08.8]} 77. Kc6 {[%clk
0:00:18.2]} 77... Rxb6+ {[%clk 0:00:08.4]} 78. Kxb6 {[%clk 0:00:19.1]} 78... f2
{[%clk 0:00:08.7]} 0-1

[Event "*** Titled Tuesday Blitz"]
[Site "Chess.com"]
[Date "2020.10.20"]
[Round "1"]
[White "Euwe1234"]
[Black "bait_or_mate"]
[Result "0-1"]
[WhiteElo "2272"]
[BlackElo "2602"]
[TimeControl "180+1"]
[EndTime "10:08:56 PDT"]
[Termination "bait_or_mate won on time"]

1. Nf3 {[%clk 0:02:56.5]} 1... d5 {[%clk 0:02:59.7]} 2. d4 {[%clk 0:02:55.6]}
2... Nf6 {[%clk 0:02:59.3]} 3. Bf4 {[%clk 0:02:54.4]} 3... e6 {[%clk 0:02:58.1]}
4. e3 {[%clk 0:02:54.6]} 4... c5 {[%clk 0:02:58.3]} 5. c3 {[%clk 0:02:53.9]}
5... Nc6 {[%clk 0:02:58.8]} 6. Nbd2 {[%clk 0:02:54]} 6... cxd4 {[%clk
0:02:59.1]} 7. exd4 {[%clk 0:02:53.7]} 7... Nh5 {[%clk 0:02:59.3]} 8. Bg3 {[%clk
0:02:52.2]} 8... g6 {[%clk 0:02:57.8]} 9. Bd3 {[%clk 0:02:50.8]} 9... Bg7 {[%clk
0:02:57.7]} 10. O-O {[%clk 0:02:50.2]} 10... O-O {[%clk 0:02:57.8]} 11. Re1
{[%clk 0:02:50.1]} 11... b6 {[%clk 0:02:45]} 12. Nf1 {[%clk 0:02:37.4]} 12...
Bb7 {[%clk 0:02:41.6]} 13. Be5 {[%clk 0:02:37.2]} 13... f6 {[%clk 0:02:40.7]}
14. Bg3 {[%clk 0:02:36.8]} 14... Nxg3 {[%clk 0:02:34.9]} 15. hxg3 {[%clk
0:02:34.8]} 15... e5 {[%clk 0:02:35.3]} 16. dxe5 {[%clk 0:02:32.3]} 16... fxe5
{[%clk 0:02:36.2]} 17. Be2 {[%clk 0:02:29.1]} 17... Qd7 {[%clk 0:02:25.2]} 18.
Ne3 {[%clk 0:02:27.4]} 18... d4 {[%clk 0:02:13.8]} 19. cxd4 {[%clk 0:02:26.5]}
19... Nxd4 {[%clk 0:02:08]} 20. Nc4 {[%clk 0:02:20.8]} 20... e4 {[%clk
0:01:32.1]} 21. Nxd4 {[%clk 0:01:59.5]} 21... Qxd4 {[%clk 0:01:33]} 22. Qxd4
{[%clk 0:01:31.8]} 22... Bxd4 {[%clk 0:01:33.9]} 23. Ne3 {[%clk 0:01:30.8]}
23... Bxb2 {[%clk 0:01:29.1]} 24. Rad1 {[%clk 0:01:28.4]} 24... Rad8 {[%clk
0:01:22.6]} 25. Bc4+ {[%clk 0:01:27.2]} 25... Kg7 {[%clk 0:01:21.1]} 26. Nd5
{[%clk 0:01:26.9]} 26... Rfe8 {[%clk 0:00:59.5]} 27. Bb3 {[%clk 0:01:09.2]}
27... Rd7 {[%clk 0:00:36.5]} 28. Nf4 {[%clk 0:01:00]} 28... Ree7 {[%clk
0:00:22.5]} 29. Be6 {[%clk 0:00:38.7]} 29... Rxd1 {[%clk 0:00:20.1]} 30. Rxd1
{[%clk 0:00:39.6]} 30... Be5 {[%clk 0:00:17.6]} 31. Bb3 {[%clk 0:00:39]} 31...
Bxf4 {[%clk 0:00:17.6]} 32. gxf4 {[%clk 0:00:39.9]} 32... Kf6 {[%clk 0:00:17.6]}
33. Rd6+ {[%clk 0:00:39.2]} 33... Kf5 {[%clk 0:00:17.1]} 34. g3 {[%clk
0:00:33.3]} 34... e3 {[%clk 0:00:17.2]} 35. fxe3 {[%clk 0:00:16.8]} 35... Rxe3
{[%clk 0:00:18.1]} 36. Kh2 {[%clk 0:00:15.1]} 36... Re2+ {[%clk 0:00:15.7]} 37.
Kh3 {[%clk 0:00:15.2]} 37... Bg2+ {[%clk 0:00:15.9]} 38. Kh4 {[%clk 0:00:15.2]}
38... Bf1 {[%clk 0:00:12.4]} 39. Rd5+ {[%clk 0:00:12.6]} 39... Ke4 {[%clk
0:00:10.8]} 40. Re5+ {[%clk 0:00:12.5]} 40... Kf3 {[%clk 0:00:10.1]} 41. Rxe2
{[%clk 0:00:12.6]} 41... Bxe2 {[%clk 0:00:11]} 42. Bd5+ {[%clk 0:00:12.7]} 42...
Ke3 {[%clk 0:00:10.3]} 43. Kg5 {[%clk 0:00:12.7]} 43... Bd3 {[%clk 0:00:07.9]}
44. Bg8 {[%clk 0:00:12.8]} 44... Kf2 {[%clk 0:00:05.8]} 45. Bxh7 {[%clk
0:00:12.5]} 45... Kxg3 {[%clk 0:00:06.2]} 46. Bg8 {[%clk 0:00:12.8]} 46... Kf3
{[%clk 0:00:06.4]} 47. Bb3 {[%clk 0:00:13.6]} 47... Ke3 {[%clk 0:00:06.7]} 48.
Bf7 {[%clk 0:00:14]} 48... Bf5 {[%clk 0:00:06.5]} 49. Bb3 {[%clk 0:00:13.2]}
49... b5 {[%clk 0:00:06.9]} 50. Bf7 {[%clk 0:00:14.1]} 50... a5 {[%clk
0:00:07.2]} 51. Be8 {[%clk 0:00:14.4]} 51... b4 {[%clk 0:00:07.3]} 52. Ba4
{[%clk 0:00:14.4]} 52... Kd4 {[%clk 0:00:05.8]} 53. Be8 {[%clk 0:00:14.3]} 53...
Kc3 {[%clk 0:00:05.1]} 54. Bxg6 {[%clk 0:00:14.4]} 54... Be6 {[%clk 0:00:05.2]}
55. f5 {[%clk 0:00:14.4]} 55... Bxa2 {[%clk 0:00:05.3]} 56. f6 {[%clk
0:00:15.3]} 56... Kd4 {[%clk 0:00:04.7]} 57. f7 {[%clk 0:00:12.5]} 57... Bxf7
{[%clk 0:00:04.2]} 58. Bxf7 {[%clk 0:00:13.4]} 58... a4 {[%clk 0:00:04.8]} 59.
Kf4 {[%clk 0:00:13.8]} 59... b3 {[%clk 0:00:05.1]} 60. Be8 {[%clk 0:00:14.1]}
60... b2 {[%clk 0:00:04.3]} 61. Bxa4 {[%clk 0:00:15]} 61... b1=Q {[%clk
0:00:04.3]} 62. Bc6 {[%clk 0:00:15.4]} 62... Qc1+ {[%clk 0:00:05.1]} 63. Kf5
{[%clk 0:00:13.6]} 63... Qxc6 {[%clk 0:00:05.2]} 64. Kg5 {[%clk 0:00:13.7]}
64... Qd5+ {[%clk 0:00:06.1]} 65. Kg4 {[%clk 0:00:14.1]} 65... Qe5 {[%clk
0:00:07]} 66. Kf3 {[%clk 0:00:06.5]} 66... Qe4+ {[%clk 0:00:07.3]} 67. Kg3
{[%clk 0:00:06.4]} 67... Qf5 {[%clk 0:00:06.9]} 0-1

[Event "*** Titled Tuesday Blitz"]
[Site "Chess.com"]
[Date "2020.10.20"]
[Round "1"]
[White "CM_rui"]
[Black "baki83"]
[Result "0-1"]
[WhiteElo "2371"]
[BlackElo "2740"]
[TimeControl "180+1"]
[EndTime "10:09:00 PDT"]
[Termination "baki83 won by checkmate"]

1. e4 {[%clk 0:03:00.9]} 1... e5 {[%clk 0:02:58.3]} 2. Nf3 {[%clk 0:02:56.8]}
2... Nc6 {[%clk 0:02:58.7]} 3. Bb5 {[%clk 0:02:56.6]} 3... a6 {[%clk 0:02:55.3]}
4. Ba4 {[%clk 0:02:56.7]} 4... d6 {[%clk 0:02:55.6]} 5. O-O {[%clk 0:02:55.5]}
5... Bd7 {[%clk 0:02:55.7]} 6. c3 {[%clk 0:02:55.6]} 6... g6 {[%clk 0:02:55.1]}
7. d4 {[%clk 0:02:55.5]} 7... Bg7 {[%clk 0:02:55.8]} 8. Re1 {[%clk 0:02:54.4]}
8... Nge7 {[%clk 0:02:53.6]} 9. h3 {[%clk 0:02:52.6]} 9... O-O {[%clk
0:02:53.5]} 10. Be3 {[%clk 0:02:50.8]} 10... Kh8 {[%clk 0:02:43.5]} 11. Nbd2
{[%clk 0:02:50.1]} 11... f5 {[%clk 0:02:40.2]} 12. dxe5 {[%clk 0:02:42.2]} 12...
f4 {[%clk 0:02:28]} 13. Bd4 {[%clk 0:02:35.2]} 13... dxe5 {[%clk 0:02:27.1]} 14.
Bc5 {[%clk 0:02:35]} 14... b6 {[%clk 0:02:27.2]} 15. Bxe7 {[%clk 0:02:33.3]}
15... Qxe7 {[%clk 0:02:24.9]} 16. Qe2 {[%clk 0:02:26.2]} 16... b5 {[%clk
0:02:24.4]} 17. Bc2 {[%clk 0:02:23.8]} 17... g5 {[%clk 0:02:18.7]} 18. Nh2
{[%clk 0:02:20]} 18... Rg8 {[%clk 0:02:13.8]} 19. a4 {[%clk 0:02:18.4]} 19...
Rab8 {[%clk 0:02:13.1]} 20. axb5 {[%clk 0:02:17.6]} 20... axb5 {[%clk 0:02:14]}
21. Bb3 {[%clk 0:02:17.4]} 21... Rgd8 {[%clk 0:02:12.6]} 22. Ndf1 {[%clk
0:02:03.1]} 22... b4 {[%clk 0:02:08.6]} 23. Bd5 {[%clk 0:01:57.7]} 23... Qc5
{[%clk 0:02:05.1]} 24. Qh5 {[%clk 0:01:49.1]} 24... Qe7 {[%clk 0:01:53.3]} 25.
Nf3 {[%clk 0:01:43]} 25... h6 {[%clk 0:01:45.2]} 26. c4 {[%clk 0:01:32.5]} 26...
Be8 {[%clk 0:01:35.9]} 27. Qg4 {[%clk 0:01:32]} 27... Bf6 {[%clk 0:01:32.5]} 28.
Ra6 {[%clk 0:01:25.1]} 28... Rb6 {[%clk 0:01:29.5]} 29. Rxb6 {[%clk 0:01:24]}
29... cxb6 {[%clk 0:01:30.4]} 30. Qf5 {[%clk 0:01:17.2]} 30... Bd7 {[%clk
0:01:25.2]} 31. Qg6 {[%clk 0:01:16.7]} 31... Qg7 {[%clk 0:01:24.8]} 32. Qh5
{[%clk 0:01:10.1]} 32... g4 {[%clk 0:01:18.6]} 33. Nh4 {[%clk 0:00:53.2]} 33...
Be8 {[%clk 0:01:09.1]} 34. Nf5 {[%clk 0:00:44.5]} 34... Bxh5 {[%clk 0:01:01.4]}
35. Nxg7 {[%clk 0:00:44.7]} 35... Kxg7 {[%clk 0:00:54.6]} 36. Bxc6 {[%clk
0:00:43.4]} 36... gxh3 {[%clk 0:00:54.4]} 37. gxh3 {[%clk 0:00:43.1]} 37... Be7
{[%clk 0:00:48.7]} 38. Bd5 {[%clk 0:00:42.4]} 38... Bc5 {[%clk 0:00:43.2]} 39.
Nh2 {[%clk 0:00:37.4]} 39... Rd7 {[%clk 0:00:42.5]} 40. Ng4 {[%clk 0:00:35.9]}
40... Bxg4 {[%clk 0:00:39.9]} 41. hxg4 {[%clk 0:00:36.8]} 41... Ra7 {[%clk
0:00:40.1]} 42. Kg2 {[%clk 0:00:35.1]} 42... Ra2 {[%clk 0:00:38.7]} 43. Rb1
{[%clk 0:00:26.6]} 43... b3 {[%clk 0:00:38.3]} 44. f3 {[%clk 0:00:20.3]} 44...
Kf6 {[%clk 0:00:34.5]} 45. Kh3 {[%clk 0:00:19]} 45... Kg5 {[%clk 0:00:32.6]} 46.
Kg2 {[%clk 0:00:18.8]} 46... h5 {[%clk 0:00:32.1]} 47. gxh5 {[%clk 0:00:18]}
47... Kxh5 {[%clk 0:00:33]} 48. Kf1 {[%clk 0:00:17.7]} 48... Kh4 {[%clk
0:00:32.2]} 49. Ke2 {[%clk 0:00:18]} 49... Kg3 {[%clk 0:00:32.1]} 50. Be6 {[%clk
0:00:16.4]} 50... Kg2 {[%clk 0:00:31.7]} 51. Bd5 {[%clk 0:00:16.2]} 51... Ra7
{[%clk 0:00:26.1]} 52. Rd1 {[%clk 0:00:14.1]} 52... Ra2 {[%clk 0:00:25.6]} 53.
Rb1 {[%clk 0:00:13.5]} 53... Kg3 {[%clk 0:00:25.7]} 54. Be6 {[%clk 0:00:13.2]}
54... Ra7 {[%clk 0:00:24.8]} 55. Rd1 {[%clk 0:00:12.9]} 55... Rh7 {[%clk
0:00:25]} 56. Rb1 {[%clk 0:00:10.7]} 56... Rh2+ {[%clk 0:00:24.6]} 57. Kd3
{[%clk 0:00:10.6]} 57... Kxf3 {[%clk 0:00:23.6]} 58. Rf1+ {[%clk 0:00:11.1]}
58... Kg3 {[%clk 0:00:23]} 59. Rb1 {[%clk 0:00:05.6]} 59... f3 {[%clk
0:00:18.2]} 60. Kc3 {[%clk 0:00:06]} 60... Kf4 {[%clk 0:00:17.9]} 61. Kxb3
{[%clk 0:00:06.3]} 61... Re2 {[%clk 0:00:15.8]} 62. Bd5 {[%clk 0:00:06.6]} 62...
Bd4 {[%clk 0:00:15.6]} 63. Ka3 {[%clk 0:00:06.1]} 63... f2 {[%clk 0:00:15.9]}
64. b4 {[%clk 0:00:05.5]} 64... Re1 {[%clk 0:00:16]} 65. Rb3 {[%clk 0:00:05.8]}
65... f1=Q {[%clk 0:00:15.7]} 66. Ka4 {[%clk 0:00:06.7]} 66... Ra1+ {[%clk
0:00:15.5]} 67. Kb5 {[%clk 0:00:07.2]} 67... Ra7 {[%clk 0:00:14.4]} 68. Kc6
{[%clk 0:00:05.8]} 68... Rg7 {[%clk 0:00:13.8]} 69. Kb5 {[%clk 0:00:06.3]} 69...
Qh1 {[%clk 0:00:13.7]} 70. Ra3 {[%clk 0:00:06.7]} 70... Qh5 {[%clk 0:00:13.4]}
71. Ra6 {[%clk 0:00:07.3]} 71... Qe8+ {[%clk 0:00:13.2]} 72. Bc6 {[%clk
0:00:07.5]} 72... Qb8 {[%clk 0:00:13.8]} 73. Bd5 {[%clk 0:00:08.1]} 73... Qd6
{[%clk 0:00:14.2]} 74. Ra4 {[%clk 0:00:08.4]} 74... Bc3 {[%clk 0:00:14.3]} 75.
Bc6 {[%clk 0:00:08.6]} 75... Rc7 {[%clk 0:00:13.6]} 76. Bd5 {[%clk 0:00:09]}
76... Rc5+ {[%clk 0:00:13.9]} 77. bxc5 {[%clk 0:00:09.1]} 77... Qxc5+ {[%clk
0:00:14.8]} 78. Ka6 {[%clk 0:00:09.6]} 78... Bd4 {[%clk 0:00:15.1]} 79. Kb7
{[%clk 0:00:09.4]} 79... b5 {[%clk 0:00:15.3]} 80. Ra6 {[%clk 0:00:08.9]} 80...
bxc4 {[%clk 0:00:14.9]} 81. Rf6+ {[%clk 0:00:09.1]} 81... Ke3 {[%clk 0:00:15.4]}
82. Rf5 {[%clk 0:00:09.3]} 82... c3 {[%clk 0:00:15.8]} 83. Rf6 {[%clk
0:00:08.7]} 83... c2 {[%clk 0:00:16.2]} 84. Rc6 {[%clk 0:00:08.8]} 84... c1=Q
{[%clk 0:00:15.3]} 85. Re6 {[%clk 0:00:08.2]} 85... Qa7# {[%clk 0:00:14.9]} 0-1